fUST/lending_fUST_20250228
["ID","MTS","AMOUNT","RATE_DAILY","PERIOD"]
[354807134,1740710948463,-402.22,0.0005522,30]
[354807135,1740710948483,-9417.02,0.00055229,10]
[354807136,1740710948504,-11300.43,0.0005523,10]
[354807137,1740710948525,-500.0,0.00055239,120]
[354807138,1740710948547,-500.0,0.00055239,120]
[354807139,1740710948568,-500.0,0.00055239,120]
[354807140,1740710948593,-500.0,0.00055239,2]
[354807141,1740710948613,-645.1899616,0.00055239,120]
[354807142,1740710948634,-163.45699076,0.00055239,120]
[354807143,1740710948660,-500.0,0.00055239,2]
[354807144,1740710948696,-500.0,0.00055239,2]
[354807145,1740710948720,-588.6185499,0.00055239,2]
[354807146,1740710948745,-500.0,0.00055239,2]
[354807147,1740710948769,-500.0,0.00055239,2]
[354807148,1740710948792,-500.0,0.00055239,2]
[354807149,1740710948814,-500.0,0.00055239,2]
[354807150,1740710948837,-500.0,0.00055239,120]
[354807151,1740710948860,-1624.99,0.00055239,120]
[354807152,1740710948881,-1000.0,0.00055239,2]
[354807153,1740710948903,-560.65,0.00055239,120]
[354807154,1740710948925,-8449.3420511,0.0005524,91]
[354807155,1740710948948,-38172.05867142,0.0005524,63]
[354807156,1740710948971,-23918.10129251,0.0005524,120]
[354807157,1740710949037,-31636.89870749,0.0005524,120]
[354807158,1740710949058,-154.34294634,0.000553,2]
[354807159,1740710949080,-979.0,0.00055304,15]
[354807160,1740710949106,-500.0,0.00055337,120]
[354807161,1740710949128,-500.0,0.00055338,120]
[354807162,1740710949151,-500.0,0.00055338,120]
[354807163,1740710949172,-500.0,0.00055338,120]
[354807164,1740710949194,-500.0,0.00055338,120]
[354807165,1740710949215,-548.0451067,0.00055338,120]
[354807166,1740710949237,-500.0,0.00055338,120]
[354807167,1740710949257,-167.67492714,0.00055338,120]
[354807168,1740710949278,-530.31,0.00055338,120]
[354807169,1740710949300,-500.0,0.00055338,120]
[354807170,1740710949321,-500.0,0.00055338,120]
[354807171,1740710949347,-500.0,0.00055338,120]
[354807172,1740710949368,-500.0,0.00055338,120]
[354807173,1740710949390,-586.18,0.00055338,120]
[354807174,1740710949412,-500.0,0.00055338,120]
[354807175,1740710949439,-500.0,0.00055338,120]
[354807176,1740710949460,-500.0,0.00055338,120]
[354807177,1740710949481,-500.0,0.00055338,120]
[354807178,1740710949503,-500.0,0.00055338,120]
[354807179,1740710949524,-500.0,0.00055338,120]
[354807180,1740710949546,-500.0,0.00055338,120]
[354807181,1740710949567,-500.0,0.00055338,120]
[354807182,1740710949591,-500.0,0.00055338,120]
[354807183,1740710949614,-500.0,0.00055338,120]
[354807184,1740710949635,-689.73,0.00055338,120]
[354807185,1740710949659,-500.0,0.00055338,120]
[354807186,1740710949681,-500.0,0.00055338,120]
[354807187,1740710949708,-500.0,0.00055338,120]
[354807188,1740710949731,-500.0,0.00055338,120]
[354807189,1740710949754,-500.0,0.00055338,120]
[354807190,1740710949777,-721.81,0.00055338,120]
[354807191,1740710949799,-500.0,0.00055338,120]
[354807192,1740710949820,-537.29299538,0.00055338,120]
[354807193,1740710949844,-500.0,0.00055338,120]
[354807194,1740710949864,-500.0,0.00055338,120]
[354807195,1740710949886,-452.87965165,0.00055338,120]
[354807196,1740710958112,-201.0890715,0.000529,12]
[354807197,1740710958134,-1220.83,0.00054794,120]
[354807198,1740710958158,-7847.52,0.0005522,10]
[354807199,1740710958179,-552.79,0.00055328,30]
[354807200,1740710958199,-500.0,0.00055338,120]
[354807201,1740710958219,-3541.66,0.00055338,120]
[354807202,1740710958239,-634.87671028,0.00055338,120]
[354807203,1740710958259,-500.0,0.00055338,120]
[354807204,1740710958279,-500.0,0.00055338,120]
[354807205,1740710958300,-500.0,0.00055338,120]
[354807206,1740710958320,-501.19987772,0.00055338,120]
[354807207,1740710958340,-237.86269224,0.00055338,120]
[354807208,1740710958365,-500.0,0.00055338,120]
[354807209,1740710958386,-500.0,0.00055338,120]
[354807210,1740710958406,-500.0,0.00055338,120]
[354807211,1740710958428,-1916.66,0.00055338,120]
[354807212,1740710958450,-500.0,0.00055338,120]
[354807213,1740710958470,-501.85543902,0.00055338,120]
[354807214,1740710958492,-503.85523431,0.00055338,120]
[354807215,1740710958514,-500.0,0.00055338,120]
[354807216,1740710958535,-539.12141592,0.00055338,120]
[354807217,1740710958556,-500.0,0.00055338,120]
[354807218,1740710958577,-500.0,0.00055338,120]
[354807219,1740710958600,-500.0,0.00055338,120]
[354807220,1740710958620,-504.90685439,0.00055338,120]
[354807221,1740710958642,-500.0,0.00055338,120]
[354807222,1740710958663,-503.71152405,0.00055338,120]
[354807223,1740710958686,-502.84792394,0.00055338,120]
[354807224,1740710958708,-297.28069091,0.00055338,120]
[354807225,1740710958746,-668.37930909,0.00055338,120]
[354807226,1740710958768,-500.0,0.00055338,120]
[354807227,1740710958789,-500.0,0.00055338,120]
[354807228,1740710958809,-500.0,0.00055338,120]
[354807229,1740710958829,-500.0,0.00055338,21]
[354807230,1740710958852,-500.0,0.00055338,2]
[354807231,1740710958873,-540.76551368,0.00055338,120]
[354807232,1740710958896,-1594.31,0.00055338,120]
[354807233,1740710958919,-500.0,0.00055338,120]
[354807234,1740710958942,-500.0,0.00055338,120]
[354807235,1740710958964,-503.53475153,0.00055338,120]
[354807236,1740710958985,-500.0,0.00055338,120]
[354807237,1740710959011,-500.0,0.00055338,120]
[354807238,1740710959031,-500.0,0.00055338,120]
[354807239,1740710959052,-500.0,0.00055338,120]
[354807240,1740710959073,-507.98811164,0.00055338,120]
[354807241,1740710959094,-500.0,0.00055338,120]
[354807242,1740710959118,-506.77710133,0.00055338,120]
[354807243,1740710959142,-500.0,0.00055338,120]
[354807244,1740710959163,-500.0,0.00055338,120]
[354807245,1740710959185,-500.0,0.00055338,120]
[354807246,1740710959210,-500.0,0.00055338,120]
[354807247,1740710959231,-508.59800233,0.00055338,120]
[354807248,1740710959252,-501.61758701,0.00055338,120]
[354807249,1740710959275,-500.0,0.00055338,120]
[354807250,1740710959297,-500.0,0.00055338,120]
[354807251,1740710959318,-508.40482391,0.00055338,120]
[354807252,1740710959343,-3731.13,0.00055338,120]
[354807253,1740710959368,-508.7706481,0.00055338,120]
[354807254,1740710959390,-500.0,0.00055338,120]
[354807255,1740710959412,-500.0,0.00055338,120]
[354807256,1740710959433,-500.0,0.00055338,120]
[354807257,1740710959613,-502.98196329,0.00055338,120]
[354807258,1740710959635,-500.0,0.00055338,120]
[354807259,1740710959662,-500.0,0.00055338,120]
[354807260,1740710959685,-502.91418046,0.00055338,120]
[354807261,1740710959708,-504.83785966,0.00055338,120]
[354807262,1740710959732,-500.0,0.00055338,120]
[354807263,1740710959753,-500.0,0.00055338,60]
[354807264,1740710959775,-507.01361423,0.00055338,120]
[354807265,1740710959796,-423.55620958,0.00055338,120]
[354807266,1740710959817,-500.0,0.00055338,120]
[354807267,1740710959837,-500.0,0.00055338,120]
[354807268,1740710959860,-1347.27,0.00055338,120]
[354807269,1740710959882,-513.00627099,0.00055338,120]
[354807270,1740710959903,-500.0,0.00055338,120]
[354807271,1740710959923,-585.13844355,0.00055338,120]
[354807272,1740710959945,-1371.64,0.00055338,120]
[354807273,1740710959966,-500.0,0.00055338,120]
[354807274,1740710959987,-500.0,0.00055338,120]
[354807275,1740710960008,-3093.38,0.00055338,120]
[354807276,1740710960029,-500.0,0.00055338,120]
[354807277,1740710960050,-500.0,0.00055338,120]
[354807278,1740710960072,-508.95272339,0.00055338,120]
[354807279,1740710960093,-509.05159219,0.00055338,120]
[354807280,1740710960119,-745.08,0.00055338,120]
[354807281,1740710960141,-500.0,0.00055338,120]
[354807282,1740710960165,-500.0,0.00055338,120]
[354807283,1740710960186,-500.0,0.00055338,120]
[354807284,1740710960210,-200.0,0.00055338,7]
[354807285,1740710960232,-500.0,0.00055338,120]
[354807286,1740710960253,-500.0,0.00055338,120]
[354807287,1740710960275,-500.0,0.00055338,120]
[354807288,1740710960295,-616.57,0.00055338,30]
[354807289,1740710960315,-500.0,0.00055338,120]
[354807290,1740710960335,-500.0,0.00055338,120]
[354807291,1740710960357,-510.85137663,0.00055338,120]
[354807292,1740710960377,-1141.61,0.00055338,120]
[354807293,1740710960398,-500.0,0.00055338,120]
[354807294,1740710960418,-500.0,0.00055338,120]
[354807295,1740710960439,-585.52,0.00055338,120]
[354807296,1740710960458,-500.0,0.00055338,120]
[354807297,1740710960479,-500.0,0.00055338,120]
[354807298,1740710960500,-500.0,0.00055338,120]
[354807299,1740710960521,-500.0,0.00055338,120]
[354807300,1740710960544,-500.0,0.00055338,120]
[354807301,1740710960564,-500.0,0.00055338,120]
[354807302,1740710960585,-532.53989565,0.00055338,120]
[354807303,1740710960608,-500.0,0.00055338,120]
[354807304,1740710960630,-2121.8,0.00055338,120]
[354807305,1740710960656,-500.0,0.00055338,120]
[354807306,1740710960678,-500.0,0.00055338,120]
[354807307,1740710960705,-504.35717255,0.00055338,120]
[354807308,1740710960726,-500.0,0.00055338,120]
[354807309,1740710960749,-799.49,0.00055338,120]
[354807310,1740710960770,-500.0,0.00055338,120]
[354807311,1740710960791,-500.0,0.00055338,120]
[354807312,1740710960814,-500.0,0.00055338,120]
[354807313,1740710960834,-1492.81,0.00055338,120]
[354807314,1740710960858,-762.94,0.00055338,120]
[354807315,1740710960879,-500.0,0.00055338,120]
[354807316,1740710960899,-500.0,0.00055338,120]
[354807317,1740710960919,-511.05427331,0.00055338,120]
[354807318,1740710960941,-500.0,0.00055338,120]
[354807319,1740710960963,-500.0,0.00055338,120]
[354807320,1740710960983,-511.66854476,0.00055338,120]
[354807321,1740710961006,-535.88,0.00055339,120]
[354807322,1740710961026,-500.0,0.00055339,120]
[354807323,1740710961046,-499.0,0.00055339,120]
[354807324,1740710961066,-500.0,0.00055339,120]
[354807325,1740710961088,-500.0,0.00055339,120]
[354807326,1740710961110,-500.0,0.00055339,120]
[354807327,1740710961130,-500.0,0.00055339,120]
[354807328,1740710961151,-500.0,0.00055339,120]
[354807329,1740710961171,-500.0,0.00055339,120]
[354807330,1740710961191,-500.0,0.00055339,120]
[354807331,1740710961212,-500.0,0.00055339,120]
[354807332,1740710961233,-500.0,0.00055339,120]
[354807333,1740710961254,-500.0,0.00055339,120]
[354807334,1740710961275,-611.63663817,0.00055339,120]
[354807335,1740710961295,-500.0,0.00055339,120]
[354807336,1740710961316,-500.0,0.00055339,120]
[354807337,1740710961336,-500.0,0.00055339,120]
[354807338,1740710961364,-500.0,0.00055339,120]
[354807339,1740710961384,-500.0,0.00055339,120]
[354807340,1740710961404,-500.0,0.00055339,120]
[354807341,1740710961424,-619.7,0.00055339,120]
[354807342,1740710961445,-515.30423949,0.00055339,120]
[354807343,1740710961466,-508.19361191,0.00055339,120]
[354807344,1740710961487,-514.2,0.00055339,120]
[354807345,1740710961508,-522.59,0.00055339,120]
[354807346,1740710961529,-500.0,0.00055339,120]
[354807347,1740710961552,-511.45879367,0.00055339,120]
[354807348,1740710961571,-500.0,0.00055339,120]
[354807349,1740710961593,-502.66338217,0.00055339,120]
[354807350,1740710961617,-500.0,0.00055339,120]
[354807351,1740710961640,-500.0,0.00055339,120]
[354807352,1740710961665,-6834.02,0.00055339,120]
[354807353,1740710961688,-16516.64,0.00055339,7]
[354807354,1740710961710,-500.0,0.00055339,120]
[354807355,1740710961732,-1108.93,0.00055339,120]
[354807356,1740710961755,-500.0,0.00055339,120]
[354807357,1740710961777,-504.70578421,0.00055339,120]
[354807358,1740710961799,-500.0,0.00055339,120]
[354807359,1740710961821,-500.0,0.00055339,120]
[354807360,1740710961842,-500.0,0.00055339,120]
[354807361,1740710961868,-500.0,0.00055339,120]
[354807362,1740710961987,-500.0,0.00055339,120]
[354807363,1740710962011,-702.01,0.00055339,120]
[354807364,1740710962032,-501.46770898,0.00055339,120]
[354807365,1740710962053,-500.0,0.00055339,120]
[354807366,1740710962074,-505.99473971,0.00055339,120]
[354807367,1740710962095,-500.0,0.00055339,120]
[354807368,1740710962120,-500.0,0.00055339,45]
[354807369,1740710962140,-3780.72,0.00055339,120]
[354807370,1740710962166,-500.0,0.00055339,120]
[354807371,1740710962188,-500.0,0.00055339,120]
[354807372,1740710962209,-505.1227047,0.00055339,120]
[354807373,1740710962230,-3816.17,0.00055339,120]
[354807374,1740710962250,-500.0,0.00055339,120]
[354807375,1740710962270,-500.0,0.00055339,120]
[354807376,1740710962291,-500.0,0.00055339,120]
[354807377,1740710962313,-28125.23,0.00055339,7]
[354807378,1740710962334,-503.03108953,0.00055339,120]
[354807379,1740710962357,-2308.32,0.00055339,120]
[354807380,1740710962377,-477.36,0.00055339,120]
[354807381,1740710962397,-684.28,0.00055339,120]
[354807382,1740710962418,-500.0,0.00055339,120]
[354807383,1740710962438,-500.0,0.00055339,120]
[354807384,1740710962460,-500.0,0.00055339,120]
[354807385,1740710962482,-500.0,0.00055339,120]
[354807386,1740710962502,-504.16423933,0.00055339,120]
[354807387,1740710962524,-500.0,0.00055339,120]
[354807388,1740710962546,-500.73819212,0.00055339,60]
[354807389,1740710962567,-515.73767409,0.00055339,120]
[354807390,1740710962589,-505.97323501,0.0005534,120]
[354807391,1740710962618,-500.0,0.0005534,120]
[354807392,1740710962641,-500.0,0.0005534,120]
[354807393,1740710962667,-500.0,0.0005534,120]
[354807394,1740710962689,-500.0,0.0005534,120]
[354807395,1740710962713,-500.0,0.0005534,120]
[354807396,1740710962736,-500.0,0.0005534,120]
[354807397,1740710962759,-500.0,0.0005534,120]
[354807398,1740710962782,-513.6402949,0.0005534,120]
[354807399,1740710962804,-500.0,0.0005534,120]
[354807400,1740710962824,-495.49195467,0.0005534,120]
[354807401,1740710962845,-500.0,0.0005534,120]
[354807402,1740710962868,-513.66507032,0.0005534,120]
[354807403,1740710962889,-507.68189051,0.0005534,120]
[354807404,1740710962909,-577.5678341,0.0005534,120]
[354807405,1740710962929,-506.40587088,0.0005534,120]
[354807406,1740710962950,-500.0,0.0005534,120]
[354807407,1740710962971,-505.93002822,0.0005534,120]
[354807408,1740710962992,-500.0,0.0005534,120]
[354807409,1740710963014,-500.0,0.0005534,120]
[354807410,1740710963035,-518.25452609,0.0005534,120]
[354807411,1740710963056,-500.0,0.0005534,120]
[354807412,1740710963078,-515.29,0.0005534,120]
[354807413,1740710963103,-508.73510152,0.0005534,120]
[354807414,1740710963124,-504.50003411,0.0005534,120]
[354807415,1740710963145,-500.0,0.0005534,120]
[354807416,1740710963166,-500.0,0.0005534,120]
[354807417,1740710963188,-500.0,0.0005534,120]
[354807418,1740710963213,-503.5803203,0.0005534,120]
[354807419,1740710963235,-506.40832552,0.0005534,120]
[354807420,1740710963257,-500.0,0.0005534,120]
[354807421,1740710963280,-506.50390998,0.0005534,120]
[354807422,1740710963302,-500.0,0.0005534,120]
[354807423,1740710963325,-500.0,0.0005534,120]
[354807424,1740710963348,-505.77863859,0.0005534,120]
[354807425,1740710963374,-718.97,0.0005534,120]
[354807426,1740710963396,-500.0,0.0005534,120]
[354807427,1740710963416,-503.60315208,0.0005534,120]
[354807428,1740710963437,-615.9118225,0.0005534,120]
[354807429,1740710963459,-510.60352937,0.0005534,120]
[354807430,1740710963482,-502.1426938,0.0005534,120]
[354807431,1740710963506,-504.72547069,0.0005534,120]
[354807432,1740710963528,-579.09,0.0005534,120]
[354807433,1740710963549,-500.0,0.0005534,120]
[354807434,1740710963571,-500.0,0.0005534,120]
[354807435,1740710963596,-756.72,0.0005534,120]
[354807436,1740710963624,-500.0,0.0005534,120]
[354807437,1740710963647,-500.0,0.0005534,120]
[354807438,1740710963673,-500.0,0.0005534,120]
[354807439,1740710963701,-505.30545607,0.0005534,120]
[354807440,1740710963726,-638.14,0.0005534,120]
[354807441,1740710963752,-500.0,0.0005534,120]
[354807442,1740710963777,-501.60927585,0.0005534,120]
[354807443,1740710963801,-500.0,0.0005534,120]
[354807444,1740710963826,-500.0,0.0005534,120]
[354807445,1740710963852,-500.0,0.0005534,120]
[354807446,1740710963874,-502.51894417,0.0005534,120]
[354807447,1740710963898,-508.0439987,0.0005534,120]
[354807448,1740710963921,-504.37684286,0.0005534,120]
[354807449,1740710963945,-222.17931346,0.0005534,120]
[354807450,1740710963967,-501.39098199,0.0005534,120]
[354807451,1740710963991,-509.4698793,0.0005534,120]
[354807452,1740710964017,-500.0,0.0005534,120]
[354807453,1740710964042,-502.21717537,0.0005534,120]
[354807454,1740710964066,-504.10798523,0.0005534,7]
[354807455,1740710964091,-500.0,0.0005534,120]
[354807456,1740710964118,-500.0,0.0005534,120]
[354807457,1740710964141,-510.41809982,0.0005534,120]
[354807458,1740710964165,-504.21742886,0.0005534,120]
[354807459,1740710964187,-500.0,0.0005534,120]
[354807460,1740710964211,-504.78397516,0.0005534,120]
[354807461,1740710964235,-510.26371,0.0005534,120]
[354807462,1740710964395,-500.0,0.0005534,120]
[354807463,1740710964424,-504.52908079,0.0005534,120]
[354807464,1740710964448,-530.97134262,0.0005534,120]
[354807465,1740710964472,-500.0,0.0005534,120]
[354807466,1740710964494,-500.0,0.0005534,120]
[354807467,1740710964516,-503.36181797,0.0005534,120]
[354807468,1740710964538,-507.57940226,0.0005534,120]
[354807469,1740710964563,-500.0,0.0005534,120]
[354807470,1740710964587,-338.31520816,0.0005534,120]
[354807471,1740710968118,-6539.6,0.00055329,10]
[354807472,1740710968144,-460.66,0.00055329,30]
[354807473,1740710968169,-509.75080601,0.00055338,120]
[354807474,1740710968194,-500.0,0.00055338,120]
[354807475,1740710968218,-293.86479184,0.0005534,120]
[354807476,1740710968245,-500.0,0.0005534,120]
[354807477,1740710968271,-500.0,0.0005534,120]
[354807478,1740710968504,-500.0,0.0005534,120]
[354807479,1740710968527,-500.0,0.0005534,120]
[354807480,1740710968549,-500.0,0.0005534,2]
[354807481,1740710968570,-500.0,0.0005534,120]
[354807482,1740710968591,-500.0,0.0005534,120]
[354807483,1740710968613,-500.0,0.0005534,120]
[354807484,1740710968632,-500.0,0.0005534,120]
[354807485,1740710968653,-578.58,0.0005534,120]
[354807486,1740710968672,-500.0,0.0005534,120]
[354807487,1740710968695,-513.23039078,0.0005534,120]
[354807488,1740710968715,-500.0,0.0005534,120]
[354807489,1740710968737,-500.0,0.0005534,120]
[354807490,1740710968757,-500.0,0.0005534,120]
[354807491,1740710968779,-500.0,0.0005534,120]
[354807492,1740710968798,-500.0,0.0005534,120]
[354807493,1740710968818,-500.0,0.0005534,120]
[354807494,1740710968838,-500.0,0.0005534,120]
[354807495,1740710968862,-500.0,0.0005534,120]
[354807496,1740710968882,-509.26552829,0.0005534,15]
[354807497,1740710968902,-500.0,0.0005534,120]
[354807498,1740710968923,-500.0,0.0005534,120]
[354807499,1740710968943,-509.6729593,0.0005534,120]
[354807500,1740710968962,-500.0,0.0005534,120]
[354807501,1740710968984,-576.66,0.0005534,120]
[354807502,1740710969006,-248.33972168,0.0005534,120]
[354807503,1740710969026,-510.72219301,0.0005534,120]
[354807504,1740710969047,-212.80821458,0.0005534,120]
[354807505,1740710969067,-500.0,0.0005534,120]
[354807506,1740710969088,-500.0,0.0005534,120]
[354807507,1740710969111,-300.0,0.0005534,120]
[354807508,1740710969132,-507.80619851,0.0005534,120]
[354807509,1740710969154,-500.0,0.0005534,120]
[354807510,1740710969175,-511.10487004,0.0005534,120]
[354807511,1740710969195,-558.29,0.0005534,120]
[354807512,1740710969217,-500.0,0.0005534,120]
[354807513,1740710969237,-500.0,0.0005534,120]
[354807514,1740710969258,-503.9227218,0.0005534,120]
[354807515,1740710969279,-500.0,0.0005534,120]
[354807516,1740710969302,-500.0,0.0005534,120]
[354807517,1740710969324,-500.0,0.0005534,120]
[354807518,1740710969347,-500.0,0.0005534,120]
[354807519,1740710969373,-500.0,0.0005534,120]
[354807520,1740710969500,-585.69,0.0005534,120]
[354807521,1740710969523,-533.28,0.0005534,120]
[354807522,1740710969545,-500.0,0.0005534,120]
[354807523,1740710969567,-500.0,0.0005534,120]
[354807524,1740710969587,-500.0,0.0005534,120]
[354807525,1740710969611,-500.0,0.0005534,120]
[354807526,1740710969631,-500.0,0.0005534,120]
[354807527,1740710969653,-500.0,0.0005534,120]
[354807528,1740710969672,-339.16027832,0.0005534,120]
[354807529,1740710969697,-500.0,0.0005534,120]
[354807530,1740710969719,-504.90024617,0.0005534,120]
[354807531,1740710969739,-500.0,0.0005534,120]
[354807532,1740710969761,-500.0,0.0005534,120]
[354807533,1740710969784,-500.0,0.0005534,120]
[354807534,1740710969805,-500.0,0.0005534,120]
[354807535,1740710969827,-509.19413572,0.0005534,120]
[354807536,1740710969847,-500.0,0.0005534,120]
[354807537,1740710969872,-616.24029548,0.0005534,120]
[354807538,1740710969894,-500.0,0.0005534,120]
[354807539,1740710969915,-512.26506001,0.0005534,120]
[354807540,1740710969938,-604.79,0.0005534,120]
[354807541,1740710969959,-501.73383364,0.0005534,120]
[354807542,1740710969981,-500.0,0.0005534,120]
[354807543,1740710970004,-500.0,0.0005534,120]
[354807544,1740710970026,-508.47590333,0.0005534,120]
[354807545,1740710970049,-500.0,0.0005534,120]
[354807546,1740710970070,-500.0,0.0005534,120]
[354807547,1740710970090,-500.0,0.0005534,120]
[354807548,1740710970114,-500.0,0.0005534,120]
[354807549,1740710970137,-500.0,0.0005534,120]
[354807550,1740710970160,-508.22984523,0.0005534,120]
[354807551,1740710970183,-510.54149969,0.0005534,120]
[354807552,1740710970204,-500.0,0.0005534,120]
[354807553,1740710970225,-500.0,0.0005534,120]
[354807554,1740710970246,-3354.16,0.0005534,120]
[354807555,1740710970266,-500.0,0.0005534,120]
[354807556,1740710970287,-500.0,0.0005534,120]
[354807557,1740710970308,-500.0,0.0005534,120]
[354807558,1740710970327,-500.0,0.0005534,120]
[354807559,1740710970347,-151.0,0.0005534,7]
[354807560,1740710970369,-151.651304,0.0005534,7]
[354807561,1740710970388,-500.0,0.0005534,120]
[354807562,1740710970408,-645.22,0.00055342,55]
[354807563,1740710970429,-500.0,0.00055373,15]
[354807564,1740710970449,-500.0,0.00055373,15]
[354807565,1740710970469,-500.0,0.00055373,14]
[354807566,1740710970490,-6181.02949184,0.000554,30]
[354807567,1740710971086,-500.0,0.00055338,120]
[354807568,1740710971108,-500.03453479,0.0005534,120]
[354807569,1740710971129,-3957.19087606,0.000554,30]
[354807570,1740710972085,-500.0,0.00055338,120]
[354807571,1740710972111,-30791.06995276,0.000554,30]
[354807572,1740710972237,-23539.53967934,0.000554,30]
[354807573,1740710972262,-405.4,0.000554,30]
[354807574,1740710972287,-158.0,0.000557,120]
[354807575,1740710972312,-1000.0,0.000558,120]
[354807576,1740710972337,-645.22,0.0005589,60]
[354807577,1740710972367,-1792.35,0.000559,30]
[354807578,1740710972394,-195.4375392,0.00055999,120]
[354807579,1740710972420,-1550.33,0.00056,30]
[354807580,1740710972449,-3924.91,0.00056,30]
[354807581,1740710972476,-151.0,0.00056274,120]
[354807582,1740710972502,-645.22,0.00056438,65]
[354807583,1740710972526,-200.0,0.0005676,102]
[354807584,1740710972549,-645.22,0.00056986,70]
[354807585,1740710972571,-274.0,0.00057,120]
[354807586,1740710972592,-22595.82564717,0.00057,45]
[354807587,1740710972616,-1876.15578391,0.00057,120]
[354807588,1740710972637,-645.22,0.00057534,75]
[354807589,1740710972662,-500.0,0.00057534,120]
[354807590,1740710972685,-1220.83,0.00057534,120]
[354807591,1740710972709,-506.75933832,0.00057979,120]
[354807592,1740710972732,-1624.99,0.00057979,120]
[354807593,1740710972755,-560.65,0.00057979,120]
[354807594,1740710972778,-5980.67,0.00058013,120]
[354807595,1740710972922,-1000.0,0.00058052,7]
[354807596,1740710972944,-500.0,0.00058073,14]
[354807597,1740710972969,-500.0,0.00058073,15]
[354807598,1740710972993,-503.24805766,0.00058073,14]
[354807599,1740710973023,-500.0,0.00058073,15]
[354807600,1740710973066,-500.0,0.00058073,15]
[354807601,1740710973093,-171.56211477,0.00058073,15]
[354807602,1740710973123,-500.0,0.00058073,14]
[354807603,1740710973148,-500.0,0.00058073,15]
[354807604,1740710973174,-4224.67102556,0.00058078,91]
[354807605,1740710973199,-19086.02933571,0.00058078,63]
[354807606,1740710973225,-508.00364928,0.00058078,120]
[354807607,1740710973252,-566.14,0.00058078,120]
[354807608,1740710973276,-640.99,0.00058078,120]
[354807609,1740710973300,-344.15,0.00058078,120]
[354807610,1740710973325,-500.0,0.00058078,120]
[354807611,1740710973349,-500.0,0.00058078,120]
[354807612,1740710973379,-618.08629511,0.00058078,120]
[354807613,1740710973403,-500.0,0.00058078,120]
[354807614,1740710973427,-586.18,0.00058078,120]
[354807615,1740710973450,-500.0,0.00058078,120]
[354807616,1740710973473,-500.0,0.00058078,120]
[354807617,1740710973497,-353.59653161,0.00058078,120]
[354807618,1740710973522,-500.0,0.00058078,120]
[354807619,1740710973546,-689.73,0.00058078,120]
[354807620,1740710973570,-396.39,0.00058078,120]
[354807621,1740710973594,-500.0,0.00058078,120]
[354807622,1740710973622,-508.19609717,0.00058078,120]
[354807623,1740710973647,-721.81,0.00058078,120]
[354807624,1740710973673,-500.0,0.00058078,120]
[354807625,1740710973701,-500.0,0.00058078,120]
[354807626,1740710973729,-500.0,0.00058078,120]
[354807627,1740710973760,-3541.66,0.00058078,120]
[354807628,1740710973790,-601.67,0.00058078,120]
[354807629,1740710973817,-500.0,0.00058078,120]
[354807630,1740710973843,-500.0,0.00058078,120]
[354807631,1740710973871,-539.66,0.00058078,120]
[354807632,1740710973898,-1916.66,0.00058078,120]
[354807633,1740710973923,-500.0,0.00058078,120]